bitfinex/quotes_BTCUSD_20250123
["timestamp","ask_amount","ask_price","bid_price","bid_amount"]
[1737610458000,0.17664359,102060.0,102050.0,4.59578199]
[1737610458200,0.09825959,102060.0,102050.0,4.49429899]
[1737610458411,0.09825959,102060.0,102050.0,4.20986899]
[1737610458609,0.09825959,102060.0,102050.0,3.83626699]
[1737610458814,0.09825959,102060.0,102050.0,2.37232399]
[1737610461574,0.09825959,102060.0,102050.0,2.38220777]
[1737610463793,0.09825959,102060.0,102050.0,2.37970777]
[1737610465552,0.03947159,102060.0,102050.0,2.37970777]
[1737610465740,0.00027959,102060.0,102050.0,2.37970777]
[1737610465939,5.9e-07,102060.0,102050.0,2.37970777]
[1737610466170,8.9e-07,102060.0,102050.0,0.63317377]
[1737610466385,0.29396089,102060.0,102050.0,0.63567377]
[1737610466586,0.29396089,102060.0,102050.0,2.68616577]
[1737610466828,0.29396089,102060.0,102050.0,2.35519177]
[1737610470491,0.27436489,102060.0,102050.0,2.35519177]
[1737610470675,0.19598089,102060.0,102050.0,2.35519177]
[1737610471110,0.13719289,102060.0,102050.0,2.35519177]
[1737610471298,0.09800089,102060.0,102050.0,2.35519177]
[1737610471433,0.07199989,102060.0,102050.0,2.35519177]
[1737610472203,8.9e-07,102060.0,102050.0,2.35519177]
[1737610472625,8.9e-07,102060.0,102050.0,0.63567377]
[1737610474319,8.9e-07,102060.0,102050.0,0.64523377]
[1737610475889,0.0829425,102070.0,102050.0,0.54724277]
[1737610476060,0.0829425,102070.0,102060.0,2.32542347]
[1737610476313,0.0829425,102070.0,102060.0,2.27382047]
[1737610476747,0.3768725,102070.0,102060.0,2.27382047]
[1737610478398,0.3768725,102070.0,102060.0,2.42382047]
[1737610478844,0.4221725,102070.0,102060.0,1.40578447]
[1737610479095,0.4221725,102070.0,102060.0,1.41534447]
[1737610483259,0.3768725,102070.0,102060.0,1.41534447]
[1737610483416,0.3768725,102070.0,102060.0,1.43513148]
[1737610485398,0.3376845,102070.0,102060.0,1.43513148]
[1737610485565,0.274336,102070.0,102060.0,1.43513148]
[1737610485999,0.254742,102070.0,102060.0,1.43513148]
[1737610486204,0.19596,102070.0,102060.0,1.43513148]
[1737610486373,0.176366,102070.0,102060.0,1.43513148]
[1737610487176,0.156772,102070.0,102060.0,1.43513148]
[1737610487737,0.137178,102070.0,102060.0,1.43513148]
[1737610488535,0.265278,102070.0,102060.0,1.43513148]
[1737610490232,0.265278,102070.0,102060.0,0.59634048]
[1737610490438,0.265278,102070.0,102060.0,2.79036452]
[1737610490647,0.2654204,102070.0,102060.0,2.79036452]
[1737610491825,0.0589444,102070.0,102060.0,2.79036452]
[1737610492027,0.0393504,102070.0,102060.0,2.79036452]
[1737610492241,0.0197564,102070.0,102060.0,2.79036452]
[1737610492751,4e-07,102070.0,102060.0,2.79036452]
[1737610492953,0.2743364,102070.0,102060.0,0.59663952]
[1737610493160,0.2155544,102070.0,102060.0,0.59663952]
[1737610493383,0.1763664,102070.0,102060.0,3.73663752]
[1737610493586,0.1763664,102070.0,102060.0,3.28398252]
[1737610493887,0.1763664,102070.0,102060.0,2.99350652]
[1737610494499,0.1567724,102070.0,102060.0,2.99350652]
[1737610494698,0.0783964,102070.0,102060.0,2.99350652]
[1737610495047,2.04e-05,102070.0,102060.0,2.99350652]
[1737610495251,0.0763425,102080.0,102070.0,0.247971]
[1737610495459,0.1444425,102080.0,102070.0,1.1643164]
[1737610495680,0.4383425,102080.0,102070.0,1.0272934]
[1737610497378,0.4183425,102080.0,102070.0,1.0272934]
[1737610497631,0.4183425,102080.0,102070.0,1.1772934]
[1737610501693,0.4183425,102080.0,102070.0,1.1873071]
[1737610506768,0.4383425,102080.0,102070.0,0.93612134]
[1737610506981,0.4183425,102080.0,102070.0,0.48234234]
[1737610507442,0.4183425,102080.0,102070.0,0.59317493]
[1737610508911,0.4159742,102080.0,102070.0,0.59317493]
[1737610511249,0.4359742,102080.0,102070.0,0.59317493]
[1737610511473,0.4159742,102080.0,102070.0,0.62147705]
[1737610511704,0.2939,102080.0,102070.0,0.62147705]
[1737610512161,0.2939,102080.0,102070.0,0.59317493]
[1737610513919,0.06237545,102080.0,102070.0,0.93722813]
[1737610513923,0.0001425,102100.0,102090.0,0.097952]
[1737610514152,0.08756256,102110.0,102100.0,0.247943]
[1737610514360,0.08756256,102110.0,102100.0,2.68726459]
[1737610514590,7.2e-07,102110.0,102100.0,2.68726459]
[1737610514790,7.2e-07,102110.0,102100.0,0.56695547]
[1737610514988,0.27423372,102110.0,102100.0,0.56695547]
[1737610515210,0.27423372,102110.0,102100.0,0.84527608]
[1737610515211,0.09782031,102110.0,102100.0,0.84527608]
[1737610515435,0.01591449,102110.0,102100.0,0.84527608]
[1737610515644,0.01026031,102110.0,102100.0,0.84527608]
[1737610515856,0.01026031,102110.0,102100.0,4.17630008]
[1737610516087,8.7e-07,102120.0,102100.0,3.39322859]
[1737610516299,2e-08,102120.0,102110.0,2.766801]
[1737610516502,2e-08,102120.0,102110.0,0.74857552]
[1737610516982,0.25462002,102120.0,102110.0,0.74857552]
[1737610517193,0.13703802,102120.0,102110.0,0.9643266]
[1737610517440,0.108078,102120.0,102110.0,0.9643266]
[1737610517693,0.108078,102120.0,102110.0,4.1034416]
[1737610517893,0.097078,102120.0,102110.0,3.8206616]
[1737610518070,0.018746,102120.0,102110.0,3.22471811]
[1737610518273,4e-07,102130.0,102120.0,0.37622612]
[1737610518490,4e-07,102130.0,102120.0,3.166206]
[1737610518689,4e-07,102130.0,102120.0,0.584406]
[1737610519323,0.2937604,102130.0,102120.0,0.66693647]
[1737610519558,0.2937604,102130.0,102120.0,5.35818847]
[1737610519933,0.19830294,102130.0,102120.0,5.35818847]
[1737610521593,0.15913694,102130.0,102120.0,5.35818847]
[1737610521799,0.15913694,102130.0,102120.0,5.25818847]
[1737610522110,0.15913694,102130.0,102120.0,5.26770847]
[1737610522388,0.00116871,102130.0,102120.0,5.36770847]
[1737610522577,0.07791988,102150.0,102140.0,0.247904]
[1737610522779,0.07791988,102150.0,102140.0,5.31695499]
[1737610522988,0.07791988,102150.0,102140.0,5.32647499]
[1737610523201,0.37161988,102150.0,102140.0,5.32647499]
[1737610523656,0.37161988,102150.0,102140.0,5.2156424]
[1737610524080,0.39161988,102150.0,102140.0,5.2061224]
[1737610524294,0.46751988,102150.0,102140.0,0.63486223]
[1737610524504,0.46751988,102150.0,102140.0,0.62534223]
[1737610524718,0.46751988,102150.0,102140.0,0.63486223]
[1737610526551,0.44051988,102150.0,102140.0,0.20505264]
[1737610526975,0.46051988,102150.0,102140.0,0.09734729]
[1737610527194,0.55841488,102150.0,102140.0,0.09734729]
[1737610527435,0.44043094,102150.0,102140.0,0.24734729]
[1737610527652,0.46743094,102150.0,102140.0,0.96335223]
[1737610527869,0.41743094,102150.0,102140.0,0.96335223]
[1737610529758,0.41743094,102150.0,102140.0,0.93113523]
[1737610530013,0.41743094,102150.0,102140.0,0.74962823]
[1737610530203,0.41743094,102150.0,102140.0,0.61715723]
[1737610531193,0.43743094,102150.0,102140.0,0.61715723]
[1737610531632,0.43743094,102150.0,102140.0,0.62965588]
[1737610532040,0.41743094,102150.0,102140.0,0.62965588]
[1737610533304,0.41743094,102150.0,102140.0,0.59108588]
[1737610533682,0.41743094,102150.0,102140.0,0.58142846]
[1737610536008,0.43743094,102150.0,102140.0,0.58142846]
[1737610536211,0.43743094,102150.0,102140.0,0.63041363]
[1737610536628,0.43743094,102150.0,102140.0,0.63993363]
[1737610537308,0.43743094,102150.0,102140.0,0.64023246]
[1737610537548,0.43757324,102150.0,102140.0,0.64023246]
[1737610540820,0.48757324,102150.0,102140.0,0.64023246]
[1737610542678,0.43757324,102150.0,102140.0,0.64023246]
[1737610542883,0.48757324,102150.0,102140.0,0.64023246]
[1737610543093,0.48757324,102150.0,102140.0,1.65990146]
[1737610543462,0.48757324,102150.0,102140.0,1.23152046]
[1737610545099,0.48757324,102150.0,102140.0,1.10246946]
[1737610545306,0.48757324,102150.0,102140.0,1.08514246]
[1737610545994,0.48757324,102150.0,102140.0,1.06204246]
[1737610546775,0.49057324,102150.0,102140.0,0.90252246]
[1737610546988,0.44057324,102150.0,102140.0,0.25717787]
[1737610547615,0.44057324,102150.0,102140.0,0.40717787]
[1737610547800,0.44057324,102150.0,102140.0,0.25717787]
[1737610548001,0.44057324,102150.0,102140.0,0.2081927]
[1737610548391,0.44057324,102150.0,102140.0,0.4626437]
[1737610548612,0.44057324,102150.0,102140.0,0.3581927]
[1737610548825,0.46057324,102150.0,102140.0,0.34839135]
[1737610551047,0.55846824,102150.0,102140.0,0.00314006]
[1737610551412,0.46057324,102150.0,102140.0,0.00314006]
[1737610551800,0.46057324,102150.0,102140.0,0.00029883]
[1737610552005,0.46057324,102150.0,102140.0,0.00308412]
[1737610553859,0.75846824,102150.0,102140.0,0.00308412]
[1737610554094,0.79930083,102150.0,102140.0,0.00308412]
[1737610554280,0.68846824,102150.0,102140.0,0.00308412]
[1737610554691,0.1725,102140.0,102130.0,0.09701644]
[1737610554895,0.42442405,102140.0,102130.0,0.30519632]
[1737610555103,0.4462,102140.0,102130.0,0.30519632]
[1737610555347,0.4462,102140.0,102130.0,0.19436373]
[1737610556892,0.4662,102140.0,102130.0,0.19436373]
[1737610558511,0.4462,102140.0,102130.0,0.30519632]
[1737610560258,0.4462,102140.0,102130.0,0.19436373]
[1737610561086,0.4232,102140.0,102130.0,0.19466256]
[1737610562225,0.4232,102140.0,102130.0,0.19758488]
[1737610566309,0.4232,102140.0,102130.0,0.45841747]
[1737610566516,0.2937,102140.0,102130.0,1.53012647]
[1737610567154,0.2937,102140.0,102130.0,1.40297147]
[1737610567356,0.2937,102140.0,102130.0,1.03142647]
[1737610569932,0.2937,102140.0,102130.0,0.90349247]
[1737610570699,0.2937,102140.0,102130.0,0.90470464]
[1737610571462,0.2937,102140.0,102130.0,0.59972305]
[1737610571629,0.3994,102140.0,102130.0,0.42341005]
[1737610571839,0.3994,102140.0,102130.0,0.38941005]
[1737610572805,0.3995423,102140.0,102130.0,0.48048305]
[1737610573718,0.3765423,102140.0,102130.0,0.59131564]
[1737610573875,0.3765423,102140.0,102130.0,0.48048305]
[1737610574282,0.3765423,102140.0,102130.0,0.44648305]
[1737610574702,0.3765423,102140.0,102130.0,0.55731564]
[1737610574906,0.4671423,102140.0,102130.0,0.19879705]
[1737610576320,0.4671423,102140.0,102130.0,0.20023705]
[1737610577969,0.4471423,102140.0,102130.0,0.20023705]
[1737610578753,0.4671423,102140.0,102130.0,0.20023705]
[1737610579335,0.4471423,102140.0,102130.0,0.20023705]
[1737610579834,0.4671423,102140.0,102130.0,0.20023705]
[1737610582508,0.4241423,102140.0,102130.0,0.31106964]
[1737610582681,0.4241423,102140.0,102130.0,0.20023705]
[1737610583495,0.3765423,102140.0,102130.0,0.20023705]
[1737610583648,0.2938423,102140.0,102130.0,0.44756864]
[1737610583850,0.4185423,102140.0,102130.0,0.44756864]
[1737610584270,0.2938423,102140.0,102130.0,0.44756864]
[1737610585248,0.3438423,102140.0,102130.0,0.59756864]
[1737610585451,0.3438423,102140.0,102130.0,0.68006864]
[1737610588062,0.3431923,102140.0,102130.0,0.68006864]
[1737610589989,0.2931923,102140.0,102130.0,0.68972907]
[1737610590794,0.3431923,102140.0,102130.0,0.69924907]
[1737610591008,0.3631923,102140.0,102130.0,0.72895111]
[1737610591374,0.3131923,102140.0,102130.0,0.74494907]
[1737610591912,0.3631923,102140.0,102130.0,0.74494907]
[1737610592907,0.3631923,102140.0,102130.0,0.69924907]
[1737610594129,0.3631923,102140.0,102130.0,0.56275007]
[1737610594365,0.3631923,102140.0,102130.0,1.76843607]
[1737610596452,0.2931923,102140.0,102130.0,1.76843607]
[1737610596672,0.2931923,102140.0,102130.0,1.87926866]
[1737610596867,0.2931923,102140.0,102130.0,1.84373811]
[1737610597080,0.2931923,102140.0,102130.0,1.81403607]
[1737610604920,0.2931923,102140.0,102130.0,1.83332674]
[1737610606002,0.2931923,102140.0,102130.0,0.62764074]
[1737610606205,0.2931923,102140.0,102130.0,2.45964174]
[1737610606947,0.2931923,102140.0,102130.0,2.31999374]
[1737610607751,0.3131923,102140.0,102130.0,1.69965174]
[1737610611869,0.2931923,102140.0,102130.0,1.69965174]
[1737610612297,0.3131923,102140.0,102130.0,1.69965174]
[1737610612509,0.2931923,102140.0,102130.0,1.96958637]
[1737610612684,0.1952873,102140.0,102130.0,1.96958637]
[1737610612886,0.1952873,102140.0,102130.0,1.85875378]
[1737610613151,0.1169633,102140.0,102130.0,1.82905174]
[1737610613330,0.0973823,102140.0,102130.0,1.82905174]
[1737610614275,0.0386393,102140.0,102130.0,1.82905174]
[1737610614454,3e-07,102140.0,102130.0,1.82905174]
[1737610614687,3e-07,102140.0,102130.0,0.62894074]
[1737610615093,0.2937303,102140.0,102130.0,0.62894074]
[1737610615300,0.2349873,102140.0,102130.0,2.76285474]
[1737610615503,0.1958253,102140.0,102130.0,2.84551333]
[1737610615709,0.1958253,102140.0,102130.0,2.06602174]
[1737610616273,0.1958253,102140.0,102130.0,2.03753474]
[1737610616479,0.1762443,102140.0,102130.0,2.03753474]
[1737610616687,0.1370823,102140.0,102130.0,2.03753474]
[1737610616890,0.0979203,102140.0,102130.0,2.14836733]
[1737610617045,0.0783393,102140.0,102130.0,2.14836733]
[1737610617437,1.53e-05,102140.0,102130.0,2.03753474]
[1737610617608,1.53e-05,102140.0,102130.0,2.14836733]
[1737610617817,1.53e-05,102140.0,102130.0,3.08220033]
[1737610617969,1.53e-05,102140.0,102130.0,3.01478433]
[1737610618213,1.53e-05,102140.0,102130.0,2.48414374]
[1737610618428,1.53e-05,102140.0,102130.0,2.45207874]
[1737610618623,0.0001576,102140.0,102130.0,2.45207874]
[1737610619174,0.2741496,102140.0,102130.0,2.45207874]
[1737610619411,0.2545686,102140.0,102130.0,2.45207874]
[1737610619636,0.2154066,102140.0,102130.0,2.45207874]
[1737610620041,0.1958256,102140.0,102130.0,2.45207874]
[1737610621021,0.1370826,102140.0,102130.0,2.45207874]
[1737610621239,0.0979206,102140.0,102130.0,2.45207874]
[1737610621439,0.0783396,102140.0,102130.0,2.45207874]
[1737610621745,0.0587586,102140.0,102130.0,2.45207874]
[1737610622121,0.0391776,102140.0,102130.0,2.45207874]
[1737610622320,1.56e-05,102140.0,102130.0,2.45207874]
[1737610622728,1.56e-05,102140.0,102130.0,2.56291133]
[1737610623682,1.56e-05,102140.0,102130.0,2.28369674]
[1737610624214,6.589e-05,102140.0,102130.0,2.28369674]
[1737610624390,0.25456889,102140.0,102130.0,2.25043774]
[1737610624587,0.21540689,102140.0,102130.0,2.36127033]
[1737610624794,0.21540689,102140.0,102130.0,2.25043774]
[1737610625507,0.11750189,102140.0,102130.0,2.36127033]
[1737610626132,0.09792089,102140.0,102130.0,2.36127033]
[1737610626259,0.05875889,102140.0,102130.0,2.36127033]
[1737610626659,0.01959689,102140.0,102130.0,2.36127033]
[1737610627080,1.589e-05,102140.0,102130.0,2.36127033]
[1737610630489,0.00015819,102140.0,102130.0,2.36127033]
[1737610631083,1.9e-07,102140.0,102130.0,2.3516099]
[1737610631295,0.27414919,102140.0,102130.0,0.6836129]
[1737610631487,0.21540619,102140.0,102130.0,0.6836129]
[1737610631693,0.21540619,102140.0,102130.0,3.3615019]
[1737610632244,0.13708219,102140.0,102130.0,3.3615019]
[1737610632660,0.11750119,102140.0,102130.0,3.3615019]
[1737610633003,0.09792019,102140.0,102130.0,3.3615019]
[1737610633203,0.01959619,102140.0,102130.0,3.3615019]
[1737610633421,0.01959619,102140.0,102130.0,3.22076795]
[1737610633684,0.01959619,102140.0,102130.0,3.10993536]
[1737610634292,1.519e-05,102140.0,102130.0,3.10993536]
[1737610634679,1.519e-05,102140.0,102130.0,3.22076795]
[1737610636114,4.3e-07,102150.0,102140.0,0.247904]
[1737610636474,0.0001423,102180.0,102170.0,0.176476]
[1737610636679,0.0001423,102180.0,102170.0,3.27606828]
[1737610636850,0.00029004,102180.0,102170.0,2.89745228]
[1737610637085,0.00029004,102180.0,102170.0,2.88758146]
[1737610637280,0.29390004,102180.0,102170.0,2.72872546]
[1737610637555,0.29390004,102180.0,102170.0,2.75659417]
[1737610637809,0.19566005,102180.0,102170.0,2.87959417]
[1737610638059,0.09730405,102220.0,102210.0,0.097837]
[1737610638304,0.09780693,102220.0,102210.0,0.48515599]
[1737610638546,0.39130693,102220.0,102210.0,3.45502899]
[1737610638797,0.39130693,102220.0,102210.0,3.09400677]
[1737610639053,0.39130693,102220.0,102210.0,0.63806887]
[1737610639302,0.41130693,102220.0,102210.0,2.09841087]
[1737610640348,0.32400288,102220.0,102210.0,2.09841087]
[1737610641067,0.34400288,102220.0,102210.0,0.94711211]
[1737610641289,0.34150288,102220.0,102210.0,0.20789852]
[1737610641466,0.42200288,102220.0,102210.0,0.20789852]
[1737610641666,0.42200288,102220.0,102210.0,0.46511811]
[1737610641899,0.42200288,102220.0,102210.0,0.55166911]
[1737610642182,0.42200288,102220.0,102210.0,0.20789852]
[1737610642445,0.46500288,102220.0,102210.0,0.11055123]
[1737610642687,0.46514528,102220.0,102210.0,0.22138382]
[1737610643202,0.44514528,102220.0,102210.0,0.22138382]
[1737610643403,0.42214528,102220.0,102210.0,0.31873111]
[1737610643578,0.42214528,102220.0,102210.0,0.48037411]
[1737610649647,0.42214528,102220.0,102210.0,0.36954152]
[1737610652676,0.42214528,102220.0,102210.0,0.20789852]
[1737610652861,0.42214528,102220.0,102210.0,0.40084152]
[1737610653271,0.42214528,102220.0,102210.0,0.20789852]
[1737610653731,0.44514528,102220.0,102210.0,0.20789852]
[1737610655734,0.42214528,102220.0,102210.0,0.20789852]
[1737610655972,0.42214528,102220.0,102210.0,0.56337352]
[1737610658304,0.36414528,102220.0,102210.0,0.87319128]
[1737610658949,0.31414528,102220.0,102210.0,0.87319128]
[1737610659121,0.36414528,102220.0,102210.0,0.88271128]
[1737610659290,0.31414528,102220.0,102210.0,0.88271128]
[1737610659492,0.36414528,102220.0,102210.0,0.88271128]
[1737610660562,0.31414528,102220.0,102210.0,0.88271128]
[1737610661513,0.31414528,102220.0,102210.0,0.99354387]
[1737610662377,0.19626343,102220.0,102210.0,1.06874387]
[1737610663223,0.05319554,102220.0,102210.0,1.26911258]
[1737610663430,0.0001424,102250.0,102240.0,0.247809]
[1737610663662,0.00029326,102250.0,102240.0,2.97900099]
[1737610663862,0.00029326,102250.0,102240.0,2.80684675]
[1737610664036,0.00029326,102250.0,102240.0,2.50435575]
[1737610664473,0.31370326,102250.0,102240.0,2.50435575]
[1737610665029,0.31370326,102250.0,102240.0,2.51387575]
[1737610666006,0.31370326,102250.0,102240.0,2.42166475]
[1737610666557,0.31370326,102250.0,102240.0,1.54039675]
[1737610668425,0.31370326,102250.0,102240.0,0.52716375]
[1737610668624,0.31370326,102250.0,102240.0,1.82614575]
[1737610669280,0.31370326,102250.0,102240.0,1.83576824]
[1737610670768,0.31370326,102250.0,102240.0,1.79560724]
[1737610674001,0.31370326,102250.0,102240.0,1.90643983]
[1737610674795,0.29370326,102250.0,102240.0,1.98523983]
[1737610675312,0.19590326,102250.0,102240.0,2.03323983]
[1737610676849,0.09824566,102250.0,102240.0,2.03323983]
[1737610677131,0.02000566,102250.0,102240.0,2.03323983]
[1737610677334,0.1286,102290.0,102280.0,0.09777]
[1737610677627,0.12949322,102290.0,102280.0,0.20491864]
[1737610677844,0.42279322,102290.0,102280.0,0.20776097]
[1737610678055,0.42205075,102290.0,102280.0,1.19707297]
[1737610678197,0.42205075,102290.0,102280.0,1.17847856]
[1737610678399,0.42205075,102290.0,102280.0,1.06764597]
[1737610678595,0.42205075,102290.0,102280.0,0.62020597]
[1737610679050,0.42205075,102290.0,102280.0,0.73103856]
[1737610679245,0.42205075,102290.0,102280.0,0.62020597]
[1737610679491,0.42205075,102290.0,102280.0,0.73103856]
[1737610679664,0.42205075,102290.0,102280.0,0.82419356]
[1737610680051,0.42205075,102290.0,102280.0,0.80679356]
[1737610680526,0.42205075,102290.0,102280.0,0.32367797]
[1737610680919,0.46505075,102290.0,102280.0,0.10061233]
[1737610681473,0.46505075,102290.0,102280.0,0.10158996]
[1737610681677,0.46505075,102290.0,102280.0,0.11139131]
[1737610683472,0.46505075,102290.0,102280.0,0.11380427]
[1737610687330,0.55588334,102290.0,102280.0,0.00623292]
[1737610687754,0.65364434,102290.0,102280.0,0.00623292]
[1737610688562,0.44519305,102290.0,102280.0,0.00623292]
[1737610688741,0.46519305,102290.0,102280.0,0.10400292]
[1737610689359,0.46519305,102290.0,102280.0,0.08745463]
[1737610693755,0.46519305,102290.0,102280.0,0.09725598]
[1737610696311,0.44519305,102290.0,102280.0,0.09725598]
[1737610696525,0.42219305,102290.0,102280.0,0.19460327]
[1737610699274,0.46519305,102290.0,102280.0,0.09725598]
[1737610699451,0.46519305,102290.0,102280.0,0.08745463]
[1737610700019,0.46519305,102290.0,102280.0,0.08775325]
[1737610703322,0.29359305,102290.0,102280.0,0.30573448]
[1737610703504,0.29359305,102290.0,102280.0,0.19490189]
[1737610705436,0.33659305,102290.0,102280.0,0.0975546]
[1737610705633,0.33659305,102290.0,102280.0,0.01554198]
[1737610705917,0.33659305,102290.0,102280.0,0.11331198]
[1737610706342,0.41889305,102290.0,102280.0,0.11331198]
[1737610706794,0.41889305,102290.0,102280.0,0.10351063]
[1737610707193,0.73813109,102290.0,102280.0,0.00574063]
[1737610707393,0.83547838,102290.0,102280.0,0.00574063]
[1737610708701,0.75363393,102290.0,102280.0,0.00574063]
[1737610709950,0.90363393,102290.0,102280.0,0.00574063]
[1737610711346,0.91325376,102290.0,102280.0,0.00574063]
[1737610712131,1.00055781,102290.0,102280.0,0.00574063]
[1737610713405,0.90888544,102290.0,102280.0,0.00574063]
[1737610713939,1.01971803,102290.0,102280.0,0.00574063]
[1737610714151,0.90888544,102290.0,102280.0,0.00574063]
[1737610714857,0.75888544,102290.0,102280.0,0.00574063]
[1737610716453,0.86971803,102290.0,102280.0,0.00574063]
[1737610716886,0.96706532,102290.0,102280.0,0.00574063]
[1737610717093,1.11706532,102290.0,102280.0,0.00574063]
[1737610722472,0.02,102270.0,102260.0,0.34235117]
[1737610722690,0.3163,102270.0,102260.0,0.34235117]
[1737610723426,0.2933,102270.0,102260.0,0.35215252]
[1737610723618,0.2933,102270.0,102260.0,0.8959954]
[1737610723825,0.2933,102270.0,102260.0,1.0459954]
[1737610724454,0.3433,102270.0,102260.0,1.0459954]
[1737610725038,0.2933,102270.0,102260.0,1.0459954]
[1737610725494,0.2933,102270.0,102260.0,1.0935954]
[1737610727210,0.273744,102270.0,102260.0,1.0935954]
[1737610728490,0.234632,102270.0,102260.0,1.20442799]
[1737610728722,0.175964,102270.0,102260.0,1.20442799]
[1737610728855,0.175964,102270.0,102260.0,1.0935954]
[1737610730333,0.175964,102270.0,102260.0,1.09759681]
[1737610731970,0.175964,102270.0,102260.0,2.04061781]
[1737610732536,0.225964,102270.0,102260.0,2.04061781]
[1737610734215,0.225964,102270.0,102260.0,1.97874381]
[1737610734571,0.225964,102270.0,102260.0,1.85831481]
[1737610734974,0.225964,102270.0,102260.0,1.85861364]
[1737610735377,0.225964,102270.0,102260.0,1.86809364]
[1737610736226,0.225964,102270.0,102260.0,1.73365264]
[1737610736698,0.225964,102270.0,102260.0,1.36957464]
[1737610738531,0.225964,102270.0,102260.0,1.31672764]
[1737610739642,0.225964,102270.0,102260.0,1.22763864]
[1737610740418,0.225964,102270.0,102260.0,1.14553864]
[1737610740676,0.175964,102270.0,102260.0,0.72991788]
[1737610740877,0.31970287,102270.0,102260.0,0.30746759]
[1737610741075,0.341964,102270.0,102260.0,0.45746759]
[1737610741403,0.341964,102270.0,102260.0,0.29766624]
[1737610742995,0.321964,102270.0,102260.0,0.29766624]
[1737610743713,0.341964,102270.0,102260.0,0.29766624]
[1737610745686,0.9771361,102270.0,102260.0,0.00430024]
[1737610745892,1.07448339,102270.0,102260.0,0.00029883]
[1737610746083,0.9636508,102270.0,102260.0,0.00029883]
[1737610746905,0.9637931,102270.0,102260.0,0.00029883]
[1737610748447,0.98365752,102270.0,102260.0,0.00029883]
[1737610748844,0.66095752,102270.0,102260.0,0.00029883]
[1737610749454,0.81095752,102270.0,102260.0,0.00029883]
[1737610750303,0.92179011,102270.0,102260.0,0.00029883]
[1737610750504,0.92179011,102270.0,102260.0,1e-08]
[1737610750735,0.246309,102240.0,102230.0,0.00029883]
[1737610751077,0.53310559,102240.0,102230.0,0.00029883]
[1737610751939,0.43529659,102240.0,102230.0,0.09811683]
[1737610752091,0.53310559,102240.0,102230.0,0.00044969]
[1737610752903,0.53310559,102240.0,102230.0,0.09826769]
[1737610753105,0.422273,102240.0,102230.0,0.09826769]
[1737610753304,0.53310559,102240.0,102230.0,0.09826769]
[1737610753653,0.55291936,102240.0,102230.0,0.09826769]
[1737610754184,0.45511036,102240.0,102230.0,0.09826769]
[1737610754802,0.55291936,102240.0,102230.0,0.09826769]
[1737610755192,0.374464,102240.0,102230.0,0.09826769]
[1737610755492,0.321464,102240.0,102230.0,0.09826769]
[1737610755919,0.46488818,102240.0,102230.0,0.09826769]
[1737610757347,0.35405559,102240.0,102230.0,0.09826769]
[1737610757659,0.67675559,102240.0,102230.0,0.09826769]
[1737610761279,0.72675559,102240.0,102230.0,0.09826769]
[1737610761481,0.80456459,102240.0,102230.0,0.09826769]
[1737610761693,0.81758818,102240.0,102230.0,0.09826769]
[1737610761997,0.86539718,102240.0,102230.0,0.00044969]
[1737610762196,0.86539718,102240.0,102230.0,0.09826769]
[1737610763037,0.86539718,102240.0,102230.0,0.00044969]
[1737610763272,0.86539718,102240.0,102230.0,0.09826769]
[1737610763648,0.58499359,102240.0,102230.0,0.09826769]
[1737610764426,0.54269718,102240.0,102230.0,0.09826769]
[1737610764643,0.44488818,102240.0,102230.0,0.09826769]
[1737610764851,0.33405559,102240.0,102230.0,0.09826769]
[1737610765056,0.44488818,102240.0,102230.0,0.09826769]
[1737610765255,0.54269718,102240.0,102230.0,0.09826769]
[1737610765493,0.44488818,102240.0,102230.0,0.09826769]
[1737610765868,0.33405559,102240.0,102230.0,0.09826769]
[1737610766114,0.35405559,102240.0,102230.0,0.09826769]
[1737610766712,0.33405559,102240.0,102230.0,0.09826769]
[1737610768087,0.44488818,102240.0,102230.0,0.09826769]
[1737610768695,0.33405559,102240.0,102230.0,0.09826769]
[1737610770152,0.22855559,102240.0,102230.0,0.09826769]
[1737610773101,0.198964,102240.0,102230.0,0.19561498]
[1737610773308,0.198964,102240.0,102230.0,0.27811498]
[1737610773701,0.17670647,102240.0,102230.0,0.27811498]
[1737610773906,0.17670647,102240.0,102230.0,0.19561498]
[1737610774343,0.19970647,102240.0,102230.0,0.19561498]
[1737610774541,0.21970647,102240.0,102230.0,0.09826769]
[1737610774691,0.218964,102240.0,102230.0,0.09826769]
[1737610776601,0.225964,102240.0,102230.0,0.82501609]
[1737610776846,0.225964,102240.0,102230.0,0.7141835]
[1737610777090,0.175964,102240.0,102230.0,0.59561933]
[1737610777294,0.175964,102240.0,102230.0,0.68701533]
[1737610777478,0.175964,102240.0,102230.0,0.67496033]
[1737610777682,0.175964,102240.0,102230.0,0.7239455]
[1737610777844,0.175964,102240.0,102230.0,0.67496033]
[1737610778024,0.225964,102240.0,102230.0,0.64468033]
[1737610778225,0.175964,102240.0,102230.0,0.64468033]
[1737610778450,0.175964,102240.0,102230.0,0.6936655]
[1737610781329,0.175964,102240.0,102230.0,0.64468033]
[1737610781911,0.225964,102240.0,102230.0,0.64468033]
[1737610782261,0.175964,102240.0,102230.0,0.6936655]
[1737610782667,0.175964,102240.0,102230.0,0.5329015]
[1737610782902,0.175964,102240.0,102230.0,0.9746625]
[1737610783032,0.175964,102240.0,102230.0,0.89260833]
[1737610783238,0.175964,102240.0,102230.0,0.68953333]
[1737610783902,0.175964,102240.0,102230.0,0.43581633]
[1737610784073,0.175964,102240.0,102230.0,0.58518233]
[1737610785067,0.175964,102240.0,102230.0,0.69601492]
[1737610785943,0.175964,102240.0,102230.0,0.66501492]
[1737610786923,0.198964,102240.0,102230.0,0.46624892]
[1737610787122,0.198964,102240.0,102230.0,0.58655292]
[1737610787754,0.175964,102240.0,102230.0,0.57238692]
[1737610787950,0.175964,102240.0,102230.0,0.62137209]
[1737610788949,0.225964,102240.0,102230.0,0.62137209]
[1737610789149,0.175964,102240.0,102230.0,0.62137209]
[1737610790523,0.225964,102240.0,102230.0,0.62137209]
[1737610790926,0.175964,102240.0,102230.0,0.74987209]
[1737610791136,0.225964,102240.0,102230.0,0.74987209]
[1737610791276,0.13684,102240.0,102230.0,0.74987209]
[1737610791474,0.078154,102240.0,102230.0,0.74987209]
[1737610791981,0.078154,102240.0,102230.0,0.86070468]
[1737610792237,0.058592,102240.0,102230.0,0.74987209]
[1737610792439,0.0305823,102260.0,102240.0,0.426011]
[1737610792612,0.0001423,102260.0,102250.0,0.45501674]
[1737610792817,0.0001423,102260.0,102250.0,1.6769994]
[1737610793435,0.0001423,102260.0,102250.0,1.5177414]
[1737610793677,0.3239623,102260.0,102250.0,0.7860694]
[1737610795992,0.3239623,102260.0,102250.0,0.4932654]
[1737610796200,0.3239623,102260.0,102250.0,1.0684734]
[1737610797521,0.3239623,102260.0,102250.0,0.8927924]
[1737610798384,0.3239623,102260.0,102250.0,0.90234247]
[1737610799873,0.3239623,102260.0,102250.0,1.05234247]
[1737610800883,0.3239623,102260.0,102250.0,0.96848547]
[1737610801062,0.3239623,102260.0,102250.0,0.93008047]
[1737610801267,0.3239623,102260.0,102250.0,0.8073953]